fUSD/lending_fUSD_20260521
["ID","MTS","AMOUNT","RATE_DAILY","PERIOD"]
[422722960,1779312632000,-500.0,0.00011804,2]
[422722962,1779312632000,-417.67037514,0.00011804,2]
[422722963,1779312632000,-500.0,0.00011804,2]
[422722970,1779312632000,-500.0,0.00011804,2]
[422722945,1779312632000,-500.0,0.00011804,2]
[422722956,1779312632000,-500.0,0.00011804,2]
[422722942,1779312632000,-500.0,0.00011804,2]
[422722931,1779312632000,-500.0,0.00011804,2]
[422722943,1779312632000,-500.0,0.00011804,2]
[422722924,1779312632000,-500.0,0.00011804,2]
[422722934,1779312632000,-500.0,0.00011804,2]
[422722935,1779312632000,-500.0,0.00011804,2]
[422722923,1779312632000,-500.0,0.00011804,2]
[422722925,1779312632000,-500.0,0.00011804,2]
[422722930,1779312632000,-500.0,0.00011804,2]
[422722929,1779312632000,-500.0,0.00011804,2]
[422722927,1779312632000,-500.0,0.00011804,2]
[422722946,1779312632000,-500.0,0.00011804,2]
[422722932,1779312632000,-500.0,0.00011804,2]
[422722926,1779312632000,-500.0,0.00011804,2]
[422722928,1779312632000,-278.29876311,0.00011804,2]
[422722939,1779312632000,-500.0,0.00011804,2]
[422722936,1779312632000,-500.0,0.00011804,2]
[422722938,1779312632000,-500.0,0.00011804,2]
[422722947,1779312632000,-500.0,0.00011804,2]
[422722941,1779312632000,-500.0,0.00011804,2]
[422722940,1779312632000,-500.0,0.00011804,2]
[422722933,1779312632000,-500.0,0.00011804,2]
[422722966,1779312632000,-500.0,0.00011804,2]
[422722937,1779312632000,-500.0,0.00011804,2]
[422722969,1779312632000,-500.0,0.00011804,2]
[422722991,1779312632000,-3516.44004331,0.00011846,2]
[422722993,1779312632000,-2200.0,0.000119,4]
[422722998,1779312632000,-587.0,0.00012099,2]
[422722994,1779312632000,-5000.0,0.00011949,2]
[422722997,1779312632000,-2351.0,0.00012096,2]
[422722995,1779312632000,-2000.0,0.00011949,2]
[422722996,1779312632000,-6921.35195865,0.0001205,2]
[422722999,1779312632000,-3642.5719957,0.00012135,2]
[422723003,1779312632000,-371.07472304,0.0001215,2]
[422723002,1779312632000,-18333.6822508,0.00012135,2]
[422723001,1779312632000,-12869.4228014,0.00012135,2]
[422723000,1779312632000,-2071.6856724,0.00012135,2]
[422723006,1779312632000,-470.01,0.00012329,2]
[422723004,1779312632000,-831.12,0.00012177,2]
[422723005,1779312632000,-752.89072847,0.00012228,2]
[422723007,1779312632000,-7979.53646955,0.00012329,2]
[422723008,1779312632000,-41254.19182698,0.00012329,2]
[422723009,1779312632000,-8454.15556809,0.00012329,2]
[422723010,1779312632000,-407.42717604,0.00012329,2]
[422722992,1779312632000,-831.12,0.00011893,2]
[422722990,1779312632000,-502.70574182,0.00011806,2]
[422722968,1779312632000,-500.0,0.00011804,2]
[422722989,1779312632000,-500.0,0.00011804,2]
[422722971,1779312632000,-500.0,0.00011804,2]
[422722964,1779312632000,-500.0,0.00011804,2]
[422722967,1779312632000,-500.0,0.00011804,2]
[422722972,1779312632000,-500.0,0.00011804,2]
[422722977,1779312632000,-500.0,0.00011804,2]
[422722975,1779312632000,-500.0,0.00011804,2]
[422722973,1779312632000,-500.0,0.00011804,2]
[422722976,1779312632000,-500.0,0.00011804,2]
[422722978,1779312632000,-500.0,0.00011804,2]
[422722974,1779312632000,-500.0,0.00011804,2]
[422722983,1779312632000,-500.0,0.00011804,2]
[422722985,1779312632000,-500.0,0.00011804,2]
[422722981,1779312632000,-500.0,0.00011804,2]
[422722982,1779312632000,-450.0,0.00011804,2]
[422722980,1779312632000,-500.0,0.00011804,2]
[422722986,1779312632000,-500.0,0.00011804,2]
[422722987,1779312632000,-500.0,0.00011804,2]
[422722984,1779312632000,-500.0,0.00011804,2]
[422722979,1779312632000,-500.0,0.00011804,2]
[422722988,1779312632000,-500.0,0.00011804,2]
[422723631,1779312642000,-800.76947126,0.00012329,2]
[422723673,1779312643000,-4532.45073468,0.00012329,2]
[422723676,1779312643000,-413.04925609,0.00012329,2]
[422723835,1779312646000,-1201.41969618,0.00012329,2]
[422723895,1779313740000,1000.0,0.00028765,120]
[422723907,1779313831000,-500.0,0.000117,4]
[422723897,1779313831000,-265.84703492,0.00011226,2]
[422723899,1779313831000,-181.08203686,0.00011226,2]
[422723900,1779313831000,-27986.58,0.00011227,2]
[422723902,1779313831000,-167.1,0.00011227,2]
[422723898,1779313831000,-753.07092822,0.00011226,2]
[422723903,1779313831000,-2000.0,0.00011283,2]
[422723904,1779313831000,-159.37,0.00011293,2]
[422723901,1779313831000,-2078.225,0.00011227,2]
[422723905,1779313831000,-199.7,0.0001138,2]
[422723906,1779313831000,-421.49,0.00011491,2]
[422723916,1779313832000,-5000.0,0.00012129,2]
[422723919,1779313832000,-4152.81117519,0.00012188,2]
[422723917,1779313832000,-2500.0,0.00012129,2]
[422723914,1779313832000,-166.22,0.00011989,2]
[422723910,1779313832000,-151.0,0.00011924,2]
[422723912,1779313832000,-94236.9638357,0.00011927,2]
[422723913,1779313832000,-181.352981,0.00011927,2]
[422723911,1779313832000,-150.0,0.00011926,2]
[422723909,1779313832000,-1500.0,0.000119,4]
[422723908,1779313832000,-1000.0,0.000118,4]
[422723915,1779313832000,-16330.0374844,0.00012128,2]
[422723918,1779313832000,-151.0,0.00012185,2]
[422723920,1779313832000,-684.14459722,0.00012219,2]
[422723926,1779313832000,-500.0,0.00012228,2]
[422723938,1779313832000,-60227.51286149,0.00012229,2]
[422723922,1779313832000,-500.0,0.00012228,2]
[422723936,1779313832000,-618.09055984,0.00012228,2]
[422723933,1779313832000,-500.0,0.00012228,2]
[422723935,1779313832000,-514.59691383,0.00012228,2]
[422723937,1779313832000,-3682.0023,0.00012229,2]
[422723934,1779313832000,-500.0,0.00012228,2]
[422723931,1779313832000,-500.0,0.00012228,2]
[422723930,1779313832000,-500.0,0.00012228,2]
[422723929,1779313832000,-500.0,0.00012228,2]
[422723932,1779313832000,-500.0,0.00012228,2]
[422723924,1779313832000,-266.38388074,0.00012228,2]
[422723940,1779313837000,-128990.96419475,0.00012229,2]
[422723939,1779313837000,-166.66,0.00011567,2]
[422723941,1779313838000,-6859.99277437,0.00012229,2]
[422723956,1779313843000,-882.55272606,0.00012229,2]
[422723965,1779314045000,216.58,0.00028767,120]
[422723967,1779314177000,555.0,0.00028767,120]
[422723968,1779314201000,888.0,0.00028767,120]
[422723975,1779314228000,444.0,0.00028767,120]
[422723976,1779314261000,222.0,0.00028767,120]
[422723997,1779314869000,500.0,0.00028315,120]
[422723998,1779314941000,1000.0,0.00028766,120]
[422723999,1779314958000,179.87,5.61e-05,2]
[422724003,1779315031000,-500.0,0.00010301,2]
[422724004,1779315031000,-179.87,0.00010999,2]
[422724006,1779315031000,-500.0,0.00011205,2]
[422724008,1779315031000,-2000.0,0.00011248,2]
[422724007,1779315031000,-208.63953863,0.00011243,2]
[422724010,1779315031000,-166.67,0.0001144,2]
[422724011,1779315031000,-150.0,0.00011613,2]
[422724012,1779315031000,-166.22,0.0001164,2]
[422724013,1779315031000,-174.17,0.000117,2]
[422724009,1779315031000,-166.22,0.00011264,2]
[422724005,1779315031000,-337.19,0.00010999,2]
[422724014,1779315031000,-300.0,0.000118,4]
[422724015,1779315031000,-318.7211876,0.000119,4]
[422724024,1779315031000,-17455.43088366,0.00012031,2]
[422724022,1779315031000,-5000.0,0.00012029,2]
[422724023,1779315031000,-150.0,0.0001203,2]
[422724021,1779315031000,-2500.0,0.00012029,2]
[422724002,1779315031000,-250.43927377,6.265e-05,2]
[422724019,1779315031000,-1200.0,0.00012028,2]
[422724016,1779315031000,-381.2788124,0.000119,4]
[422724018,1779315031000,-300.0,0.00012028,2]
[422724020,1779315031000,-2000.0,0.00012029,2]
[422724017,1779315031000,-166.22,0.00012015,2]
[422724031,1779315032000,-1678.526,0.00012125,2]
[422724025,1779315032000,-3737.53005768,0.00012031,2]
[422724026,1779315032000,-3454.8382514,0.00012031,2]
[422724033,1779315032000,-61127.79500124,0.00012129,2]
[422724030,1779315032000,-456.09639815,0.00012119,2]
[422724029,1779315032000,-20204.6844976,0.00012051,2]
[422724034,1779315032000,-671.75302133,0.00012129,2]
[422724028,1779315032000,-3930.7958415,0.00012051,2]
[422724032,1779315032000,-167.101,0.00012125,2]
[422724027,1779315032000,-3345.7139161,0.00012051,2]
[422724064,1779315037000,-916.60502421,0.00012129,2]
[422724063,1779315037000,-871.643,0.00012129,2]
[422724062,1779315037000,-1890.27613519,0.00012129,2]
[422724067,1779315038000,-465.16280073,0.00012129,2]
[422724068,1779315038000,-536.65532028,0.00012129,2]
[422724066,1779315038000,-1304.90056787,0.00012129,2]
[422724065,1779315038000,-852.51481247,0.00012129,2]
[422724088,1779315040000,-8904.45631278,0.00012129,2]
[422724091,1779315043000,-1401.945228,0.00012129,2]
[422724092,1779315043000,-1936.99705179,0.00012129,2]
[422724093,1779315043000,-525.77565856,0.00012129,2]
[422724097,1779315045000,-396.79038489,0.00012129,2]
[422724101,1779315046000,-11805.9545,0.00012129,2]
[422724100,1779315046000,-1125.62062013,0.00012129,2]
[422724099,1779315046000,-378.69464344,0.00012129,2]
[422724109,1779315363000,1000.0,0.00028767,120]
[422724143,1779315793000,439.37,0.00028767,120]
[422724151,1779316140000,1000.0,0.00028766,120]
[422724171,1779316233000,-166.67,0.00011603,2]
[422724165,1779316233000,-578.76523124,0.0001128,2]
[422724178,1779316233000,-4943.0,0.0001178,2]
[422724189,1779316233000,-1431.3983,0.00012029,2]
[422724205,1779316233000,-34935.5475659,0.00012066,2]
[422724191,1779316233000,-2065.2532,0.00012029,2]
[422724193,1779316233000,-200.0,0.00012032,2]
[422724183,1779316233000,-500.0,0.00011945,2]
[422724198,1779316233000,-150.0,0.00012065,2]
[422724167,1779316233000,-159.78,0.00011286,2]
[422724185,1779316233000,-350.0,0.00011969,2]
[422724181,1779316233000,-464.08,0.00011802,2]
[422724196,1779316233000,-663.41563793,0.00012065,2]
[422724200,1779316233000,-20569.9806063,0.00012066,2]
[422724202,1779316233000,-5716.6142158,0.00012066,2]
[422724187,1779316233000,-1057.8747,0.00012029,2]
[422724170,1779316233000,-464.08,0.00011521,2]
[422724164,1779316233000,-621.23476876,0.0001128,2]
[422724169,1779316233000,-771.92,0.00011389,2]
[422724152,1779316233000,-170.5767,0.00010994,2]
[422724155,1779316233000,-6.99261719,0.00011062,2]
[422724153,1779316233000,-181.40591719,0.00010999,2]
[422724154,1779316233000,-148.01738281,0.00011062,2]
[422724156,1779316233000,-150.0,0.00011077,2]
[422724157,1779316233000,-1862.01430739,0.00011094,2]
[422724158,1779316233000,-137.98569261,0.00011094,2]
[422724168,1779316233000,-285.0,0.00011388,2]
[422724161,1779316233000,-2966.62,0.0001112,2]
[422724159,1779316233000,-208.63953863,0.00011094,2]
[422724162,1779316233000,-200.0,0.00011181,2]
[422724163,1779316233000,-464.08,0.0001124,2]
[422724172,1779316233000,-300.0,0.00011753,2]
[422724174,1779316233000,-950.11189179,0.00011754,2]
[422724176,1779316233000,-5986.0,0.0001176,2]
[422724166,1779316233000,-1014.57,0.00011281,2]
[422724160,1779316233000,-931.44,0.00011099,2]
[422724207,1779316233000,-1072.781907,0.00012066,2]
[422724211,1779316233000,-151.0,0.00012126,2]
[422724225,1779316233000,-888.0,0.00012269,2]
[422724256,1779316233000,-151.0,0.00012447,2]
[422724258,1779316233000,-151.0,0.00012447,2]
[422724260,1779316233000,-79113.93013211,0.0001245,2]
[422724265,1779316233000,-170.43895318,0.00012483,2]
[422724262,1779316233000,-500.0,0.0001245,2]
[422724263,1779316233000,-2000.0,0.00012481,2]
[422724268,1779316233000,-300.45609402,0.000125,2]
[422724272,1779316233000,-350.0,0.00012683,2]
[422724274,1779316233000,-312.28288677,0.00012724,2]
[422724270,1779316233000,-166.67,0.00012561,2]
[422724277,1779316233000,-3348.28877,0.00012832,2]
[422724276,1779316233000,-4070.37259718,0.00012817,2]
[422724278,1779316233000,-300.0,0.00012905,2]
[422724280,1779316233000,-153.874212,0.00012917,2]
[422724218,1779316233000,-151.0,0.00012229,2]
[422724254,1779316233000,-155.01,0.00012445,2]
[422724247,1779316233000,-337.19,0.00012374,2]
[422724279,1779316233000,-350.0,0.00012907,2]
[422724236,1779316233000,-2000.0,0.00012329,2]
[422724241,1779316233000,-37954.3055,0.0001235,2]
[422724222,1779316233000,-2000.0,0.0001225,2]
[422724220,1779316233000,-458.91663752,0.00012229,2]
[422724227,1779316233000,-444.0,0.00012269,2]
[422724213,1779316233000,-189.0,0.00012152,2]
[422724215,1779316233000,-1545.0,0.00012162,5]
[422724216,1779316233000,-350.0,0.00012182,2]
[422724232,1779316233000,-234.68582794,0.00012329,2]
[422724228,1779316233000,-2000.0,0.000123,2]
[422724230,1779316233000,-516.1,0.00012329,2]
[422724245,1779316233000,-464.08,0.00012364,2]
[422724249,1779316233000,-2000.0,0.000124,2]
[422724243,1779316233000,-8437.5202,0.0001235,2]
[422724234,1779316233000,-2000.0,0.00012329,2]
[422724251,1779316233000,-1680.0,0.00012408,2]
[422724209,1779316233000,-464.08,0.00012083,2]
[422724238,1779316233000,-2000.0,0.0001235,2]
[422724297,1779316234000,-500.0,0.00013066,2]
[422724298,1779316234000,-500.0,0.00013066,2]
[422724303,1779316234000,-1224.0,0.00013066,2]
[422724301,1779316234000,-294.204584,0.00013066,2]
[422724299,1779316234000,-500.0,0.00013066,2]
[422724305,1779316234000,-1354.0,0.00013066,2]
[422724300,1779316234000,-500.0,0.00013066,2]
[422724314,1779316234000,-160.0,0.00013266,2]
[422724315,1779316234000,-384.94828,0.00013266,2]
[422724296,1779316234000,-500.0,0.00013066,2]
[422724306,1779316234000,-700.0,0.00013071,2]
[422724302,1779316234000,-1271.0,0.00013066,2]
[422724294,1779316234000,-500.0,0.00013066,2]
[422724291,1779316234000,-500.0,0.00013066,2]
[422724289,1779316234000,-500.0,0.00013066,2]
[422724293,1779316234000,-500.0,0.00013066,2]
[422724292,1779316234000,-500.0,0.00013066,2]
[422724285,1779316234000,-160.0,0.00013062,2]
[422724290,1779316234000,-500.0,0.00013066,2]
[422724288,1779316234000,-500.0,0.00013066,2]
[422724287,1779316234000,-1349.28756852,0.00013065,3]
[422724282,1779316234000,-1702.849,0.0001294,2]
[422724286,1779316234000,-151.0,0.00013063,2]
[422724284,1779316234000,-1399.0,0.00013047,5]
[422724283,1779316234000,-167.538,0.0001294,2]
[422724281,1779316234000,-500.0,0.00012932,2]
[422724316,1779316234000,-609.896561,0.00013266,2]
[422724295,1779316234000,-500.0,0.00013066,2]
[422724307,1779316234000,-4182.52402237,0.000131,2]
[422724304,1779316234000,-3633.0,0.00013066,2]
[422724309,1779316234000,-151.0,0.00013151,2]
[422724311,1779316234000,-255.0,0.00013151,2]
[422724341,1779316234000,-194051.48450493,0.00013537,2]
[422724337,1779316234000,-446.06632376,0.00013536,2]
[422724335,1779316234000,-4182.52402232,0.000135,2]
[422724339,1779316234000,-474.7796116,0.00013536,2]
[422724336,1779316234000,-166.67,0.00013518,2]
[422724332,1779316234000,-150.0,0.00013488,2]
[422724331,1779316234000,-151.0,0.00013483,2]
[422724338,1779316234000,-500.0,0.00013536,2]
[422724340,1779316234000,-500.0,0.00013536,2]
[422724333,1779316234000,-350.0,0.0001349,2]
[422724326,1779316234000,-205.766141,0.00013333,2]
[422724325,1779316234000,-182.88307,0.00013333,2]
[422724321,1779316234000,-160.0,0.00013333,2]
[422724324,1779316234000,-160.0,0.00013333,2]
[422724334,1779316234000,-1000.0,0.000135,2]
[422724320,1779316234000,-5000.0,0.00013315,2]
[422724322,1779316234000,-369.726875,0.00013333,2]
[422724312,1779316234000,-350.0,0.00013176,2]
[422724310,1779316234000,-151.0,0.00013151,2]
[422724308,1779316234000,-4070.37259716,0.00013115,2]
[422724318,1779316234000,-4182.52402232,0.000133,2]
[422724327,1779316234000,-15000.0,0.00013384,2]
[422724313,1779316234000,-2500.0,0.00013184,2]
[422724323,1779316234000,-579.45375,0.00013333,2]
[422724319,1779316234000,-151.0,0.000133,2]
[422724317,1779316234000,-176.232778,0.00013266,2]
[422724329,1779316234000,-350.0,0.00013429,2]
[422724330,1779316234000,-10000.0,0.00013469,2]
[422724328,1779316234000,-4070.37259716,0.00013412,2]
[422724373,1779316238000,-500.0,0.00013698,2]
[422724372,1779316238000,-500.0,0.00013698,2]
[422724371,1779316238000,-500.0,0.00013698,2]
[422724374,1779316238000,-500.0,0.00013698,2]
[422724386,1779316238000,-500.0,0.00013698,2]
[422724375,1779316238000,-500.0,0.00013698,2]
[422724376,1779316238000,-500.0,0.00013698,2]
[422724377,1779316238000,-500.0,0.00013698,2]
[422724382,1779316238000,-231.28528028,0.00013698,2]
[422724380,1779316238000,-500.0,0.00013698,2]
[422724393,1779316238000,-500.0,0.00013698,2]
[422724378,1779316238000,-500.0,0.00013698,2]
[422724391,1779316238000,-549.35849192,0.00013698,2]
[422724388,1779316238000,-500.0,0.00013698,2]
[422724384,1779316238000,-500.0,0.00013698,2]
[422724404,1779316238000,-506.67968673,0.00013698,2]
[422724406,1779316238000,-500.0,0.00013698,2]
[422724408,1779316238000,-500.0,0.00013698,2]
[422724410,1779316238000,-500.0,0.00013698,2]
[422724364,1779316238000,-500.0,0.00013698,2]
[422724412,1779316238000,-500.0,0.00013698,2]
[422724379,1779316238000,-507.33847723,0.00013698,2]
[422724369,1779316238000,-500.0,0.00013698,2]
[422724353,1779316238000,-229.45831877,0.00013537,2]
[422724367,1779316238000,-500.0,0.00013698,2]
[422724413,1779316238000,-500.0,0.00013698,2]
[422724345,1779316238000,-151.0,0.00013151,2]
[422724344,1779316238000,-151.0,0.00013151,2]
[422724346,1779316238000,-200.940301,0.000133,2]
[422724349,1779316238000,-1128.37587025,0.00013537,2]
[422724347,1779316238000,-870.30970003,0.00013537,2]
[422724351,1779316238000,-119951.79660088,0.00013537,2]
[422724348,1779316238000,-1222.69478,0.00013537,2]
[422724350,1779316238000,-393.34307301,0.00013537,2]
[422724352,1779316238000,-151.0,0.00013537,2]
[422724368,1779316238000,-500.0,0.00013698,2]
[422724355,1779316238000,-27986.58,0.00013608,2]
[422724354,1779316238000,-5384.04052,0.00013587,2]
[422724358,1779316238000,-500.0,0.00013698,2]
[422724361,1779316238000,-500.0,0.00013698,2]
[422724360,1779316238000,-500.0,0.00013698,2]
[422724362,1779316238000,-500.0,0.00013698,2]
[422724359,1779316238000,-500.0,0.00013698,2]
[422724357,1779316238000,-2351.0,0.00013649,2]
[422724366,1779316238000,-500.0,0.00013698,2]
[422724363,1779316238000,-500.0,0.00013698,2]
[422724365,1779316238000,-500.0,0.00013698,2]
[422724356,1779316238000,-215.20247212,0.00013625,2]
[422724397,1779316238000,-500.0,0.00013698,2]
[422724370,1779316238000,-500.0,0.00013698,2]
[422724399,1779316238000,-500.0,0.00013698,2]
[422724467,1779316238000,-500.0,0.00013698,2]
[422724471,1779316238000,-500.0,0.00013698,2]
[422724478,1779316238000,-500.0,0.00013698,2]
[422724476,1779316238000,-500.0,0.00013698,2]
[422724473,1779316238000,-513.50677347,0.00013698,2]
[422724482,1779316238000,-531.58244512,0.00013698,2]
[422724480,1779316238000,-500.0,0.00013698,2]
[422724479,1779316238000,-500.0,0.00013698,2]
[422724485,1779316238000,-502.73843506,0.00013698,2]
[422724483,1779316238000,-641.21721473,0.00013698,2]
[422724469,1779316238000,-500.0,0.00013698,2]
[422724490,1779316238000,-500.0,0.00013698,2]
[422724492,1779316238000,-500.0,0.00013698,2]
[422724505,1779316238000,-500.0,0.00013698,2]
[422724507,1779316238000,-500.0,0.00013698,2]
[422724509,1779316238000,-500.0,0.00013698,2]
[422724494,1779316238000,-500.0,0.00013698,2]
[422724496,1779316238000,-594.69517291,0.00013698,2]
[422724501,1779316238000,-500.0,0.00013698,2]
[422724499,1779316238000,-500.0,0.00013698,2]
[422724511,1779316238000,-500.0,0.00013698,2]
[422724395,1779316238000,-500.0,0.00013698,2]
[422724481,1779316238000,-500.0,0.00013698,2]
[422724460,1779316238000,-957.4,0.00013698,2]
[422724487,1779316238000,-500.0,0.00013698,2]
[422724503,1779316238000,-500.0,0.00013698,2]
[422724458,1779316238000,-957.4,0.00013698,2]
[422724415,1779316238000,-500.0,0.00013698,2]
[422724419,1779316238000,-500.0,0.00013698,2]
[422724417,1779316238000,-500.0,0.00013698,2]
[422724422,1779316238000,-500.0,0.00013698,2]
[422724401,1779316238000,-500.0,0.00013698,2]
[422724428,1779316238000,-500.0,0.00013698,2]
[422724432,1779316238000,-534.78396949,0.00013698,2]
[422724430,1779316238000,-500.0,0.00013698,2]
[422724426,1779316238000,-500.0,0.00013698,2]
[422724434,1779316238000,-500.0,0.00013698,2]
[422724424,1779316238000,-500.0,0.00013698,2]
[422724463,1779316238000,-957.4,0.00013698,2]
[422724440,1779316238000,-500.0,0.00013698,2]
[422724443,1779316238000,-500.0,0.00013698,2]
[422724445,1779316238000,-500.0,0.00013698,2]
[422724448,1779316238000,-500.0,0.00013698,2]
[422724450,1779316238000,-500.0,0.00013698,2]
[422724454,1779316238000,-957.4,0.00013698,2]
[422724452,1779316238000,-957.4,0.00013698,2]
[422724456,1779316238000,-957.4,0.00013698,2]
[422724465,1779316238000,-957.4,0.00013698,2]
[422724437,1779316238000,-500.0,0.00013698,2]
[422724598,1779316239000,-2000.0,0.00013867,2]
[422724572,1779316239000,-9999.99,0.00013699,2]
[422724591,1779316239000,-800.0,0.000138,5]
[422724596,1779316239000,-166.66,0.00013836,2]
[422724610,1779316239000,-524.929473,0.0001393,2]
[422724594,1779316239000,-155.01,0.00013828,2]
[422724568,1779316239000,-166.66,0.00013699,2]
[422724575,1779316239000,-596.0,0.00013699,2]
[422724587,1779316239000,-2314.0,0.0001372,2]
[422724581,1779316239000,-190.45910978,0.000137,2]
[422724571,1779316239000,-29999.99,0.00013699,2]
[422724585,1779316239000,-4070.37259716,0.0001371,2]
[422724589,1779316239000,-337.19,0.00013749,2]
[422724608,1779316239000,-424.017024,0.0001393,2]
[422724627,1779316239000,-3794.7,0.00014,2]
[422724600,1779316239000,-5000.0,0.0001387,2]
[422724602,1779316239000,-4182.52402232,0.000139,2]
[422724606,1779316239000,-2293.0,0.00013924,5]
[422724604,1779316239000,-1600.0,0.000139,5]
[422724616,1779316239000,-10920.53524957,0.0001399,2]
[422724614,1779316239000,-166.66,0.00013973,2]
[422724617,1779316239000,-188.651799,0.00013999,2]
[422724622,1779316239000,-249.386005,0.00013999,2]
[422724624,1779316239000,-3794.7,0.00014,2]
[422724619,1779316239000,-504.173011,0.00013999,2]
[422724625,1779316239000,-3794.7,0.00014,2]
[422724633,1779316239000,-393.68,0.00014,2]
[422724579,1779316239000,-150.0,0.000137,2]
[422724612,1779316239000,-845.96767224,0.00013943,2]
[422724583,1779316239000,-4182.52402232,0.000137,2]
[422724526,1779316239000,-500.0,0.00013698,2]
[422724577,1779316239000,-719.0,0.00013699,2]
[422724513,1779316239000,-500.0,0.00013698,2]
[422724515,1779316239000,-500.0,0.00013698,2]
[422724520,1779316239000,-500.0,0.00013698,2]
[422724518,1779316239000,-500.0,0.00013698,2]
[422724523,1779316239000,-500.0,0.00013698,2]
[422724525,1779316239000,-500.0,0.00013698,2]
[422724524,1779316239000,-500.0,0.00013698,2]
[422724637,1779316239000,-11241.73324292,0.00014039,2]
[422724522,1779316239000,-500.0,0.00013698,2]
[422724527,1779316239000,-330.57854862,0.00013698,2]
[422724528,1779316239000,-500.0,0.00013698,2]
[422724531,1779316239000,-500.0,0.00013698,2]
[422724530,1779316239000,-500.0,0.00013698,2]
[422724533,1779316239000,-500.0,0.00013698,2]
[422724536,1779316239000,-500.0,0.00013698,2]
[422724538,1779316239000,-500.0,0.00013698,2]
[422724540,1779316239000,-500.0,0.00013698,2]
[422724546,1779316239000,-500.0,0.00013698,2]
[422724544,1779316239000,-500.0,0.00013698,2]
[422724548,1779316239000,-500.0,0.00013698,2]
[422724550,1779316239000,-500.0,0.00013698,2]
[422724555,1779316239000,-500.0,0.00013698,2]
[422724553,1779316239000,-504.26,0.00013698,2]
[422724542,1779316239000,-500.0,0.00013698,2]
[422724563,1779316239000,-151.0,0.00013699,2]
[422724557,1779316239000,-369.00573565,0.00013698,2]
[422724565,1779316239000,-200.0,0.00013699,2]
[422724561,1779316239000,-2500.0,0.00013699,2]
[422724559,1779316239000,-500.0,0.00013698,2]
[422724567,1779316239000,-274.499836,0.00013699,2]
[422724629,1779316239000,-3794.7,0.00014,2]
[422724665,1779316239000,-150.0,0.00014042,2]
[422724635,1779316239000,-4070.37259716,0.00014007,2]
[422724691,1779316239000,-24811.07923833,0.00014333,2]
[422724694,1779316239000,-1275.5490455,0.00014338,2]
[422724692,1779316239000,-4508.2744876,0.00014334,2]
[422724693,1779316239000,-4589.7830669,0.00014338,2]
[422724695,1779316239000,-7795.1743232,0.00014338,2]
[422724699,1779316239000,-845.96767221,0.00014422,2]
[422724631,1779316239000,-250.0,0.00014,2]
[422724697,1779316239000,-166.66,0.00014384,2]
[422724698,1779316239000,-4100.0,0.000144,5]
[422724707,1779316239000,-416.0,0.0001452,2]
[422724709,1779316239000,-1159.24501196,0.00014571,2]
[422724715,1779316239000,-4070.37259716,0.00014602,2]
[422724713,1779316239000,-800.0,0.000146,5]
[422724702,1779316239000,-800.0,0.000145,5]
[422724723,1779316239000,-1587.0,0.0001468,2]
[422724705,1779316239000,-312.0,0.0001452,2]
[422724711,1779316239000,-845.96767221,0.00014581,2]
[422724717,1779316239000,-24811.07923833,0.00014617,2]
[422724726,1779316239000,-2314.0,0.0001468,2]
[422724719,1779316239000,-500.0,0.00014672,2]